Cogmind - Beta 9.6 @@@ ROGUE MODE // 2020.06.09 @ 14:31:28 Player: Zinc Result: Destroyed by G-34 Mercenary with Small Laser Performance ------------- Evolutions (0) 0 Regions Visited (2) 400 Robots Destroyed (18) 90 Value Destroyed (516) 516 Prototype IDs (0) 0 Alien Tech Used (0) 0 Bonus (0) 0 TOTAL SCORE: 1006 Bonus ------- None Cogmind --------- Core Integrity 0/250 Matter 292/300 Energy 125/125 System Corruption 0% Temperature Cool (6) Movement Treading (180) Ox1 Location -10/Mines Parts ------- > --- POWER (1) -------- Light Ion Engine > --- PROPULSION (2) --- Light Treads Light Treads > --- UTILITY (2) ------ Large Storage Unit High-capacity Storage Unit > --- WEAPON (2) ------- Light Assault Rifle > --- INVENTORY (18) --- Light Nuclear Core Light Nuclear Core Wheel Compact Wheel Cesium-ion Thruster Small Storage Unit Large Storage Unit Improved Light Armor Plating Hacking Suite Grenade Launcher Peak State ------------ > --- POWER ------------ Light Ion Engine > --- PROPULSION ------- Light Treads Light Treads > --- UTILITY ---------- Large Storage Unit High-capacity Storage Unit > --- WEAPON ----------- Light Assault Rifle Light Assault Rifle > --- INVENTORY -------- Light Nuclear Core Light Nuclear Core Wheel Compact Wheel Cesium-ion Thruster Small Storage Unit Large Storage Unit Improved Light Armor Plating Hacking Suite Grenade Launcher [Rating: 9] Favorites ----------- Power Ion Engine Engine Ion Engine Propulsion Light Treads Treads Light Treads Leg Aluminum Leg Utility High-capacity Storage Unit Storage High-capacity Storage Unit Weapon Light Assault Rifle Energy Gun Medium Laser Ballistic Gun Light Assault Rifle Build | -11 -10 -10 ------- Run | Scr Mat Min Slots Evolved . | . . . Power . | . . . Propulsion . | . . . Utility . | . . . Weapon . | . . . Parts Attached 8 | . 7 1 Power 1 | . 1 . Engine 1 | . 1 . Core . | . . . Reactor . | . . . Propulsion 3 | . 3 . Treads 3 | . 3 . Leg . | . . . Wheel . | . . . Hover . | . . . Flight . | . . . Utility 2 | . 2 . Device . | . . . Storage 2 | . 2 . Processor . | . . . Hackware . | . . . Protection . | . . . Artifact . | . . . Weapon 2 | . 1 1 Energy Gun 1 | . 1 . Energy Cannon . | . . . Ballistic Gun 1 | . . 1 Ballistic Cannon . | . . . Launcher . | . . . Special Weapon . | . . . Impact Weapon . | . . . Slashing Weapon . | . . . Piercing Weapon . | . . . Special Melee Weapon . | . . . Unidentified Prototypes . | . . . Parts Lost 5 | . 4 1 Power 1 | . 1 . Propulsion 1 | . 1 . Utility . | . . . Weapon 3 | . 2 1 Highest Loss Streak 4 | . 4 1 Average Slot Usage (%) 95 | . 97 90 Engine 14 | . 14 14 Treads 27 | . 27 28 Storage 27 | . 27 28 Ballistic Gun 24 | . 26 19 Naked Turns . | . . . Heaviest Build 56 | 12 56 53 Greatest Support 40 | 20 40 40 Greatest Overweight (x) 1 | . 1 1 Average Overweight (x) . | . . 1 Largest Inventory Capacity 18 | 6 18 18 Average Capacity 16 | 6 15 18 Most Carried 12 | 6 12 10 Average Carried 8 | 6 7 9 Final Capacity 18 | 6 18 18 Final Carried 10 | 6 7 10 Class Distribution -------------------- 100% | Mutant Dominant Class ---------------- Mutant | -10/Materials Mutant | -10/Mines Resources | -11 -10 -10 ----------- Run | Scr Mat Min Matter Collected 451 | 200 224 27 Remotely . | . . . Salvage Created 613 | . 534 79 Parts 38 | . 32 6 Haulers Intercepted . | . . . Recyclers Shooed 1 | . 1 . Parts Field Recycled . | . . . Retrieved Matter . | . . . Parts Self-Destructed . | . . . Prevented . | . . . Kills | -11 -10 -10 ------- Run | Scr Mat Min Combat Hostiles Destroyed 13 | . 10 3 Guns 11 | . 8 3 AOE 2 | . 2 . Classes Destroyed 5 | . 4 1 Worker 2 | . 2 . Operator 2 | . 2 . Watcher 1 | . 1 . Swarmer 2 | . . 2 Grunt 11 | . 10 1 Best Kill Streak 4 | . 4 2 Combat Bots Only 4 | . 4 2 Max Kills in Single Turn 2 | . 2 1 Gunslinging . | . . . Exploded 2 | . 2 . Melee . | . . . Uniques/NPCs Destroyed . | . . . Combat | -11 -10 -10 -------- Run | Scr Mat Min Damage Taken 1024 | . 771 253 Core 250 | . 202 48 Absorbed by Shields . | . . . Core Remaining (%) 100 | 100 . . Volleys Fired 82 | . 54 28 Largest 2 | . 2 2 Hottest 70 | . 70 40 Shots Fired 126 | . 97 29 Gun 126 | . 97 29 Cannon . | . . . Launcher . | . . . Special . | . . . Kinetic 123 | . 94 29 Thermal 3 | . 3 . Explosive . | . . . Electromagnetic . | . . . Robot Hit Streak 14 | . 14 6 Robot Miss Streak 3 | . 3 2 Penetration Max . | . . . Secondary Targets . | . . . Shots Hit Robots 86 | . 65 21 Core Hits 43 | . 33 10 Critical Hits 4 | . 3 1 Critical Kills 2 | . 2 . Critical Parts Destroyed 2 | . 1 1 Melee Attacks . | . . . Impact . | . . . Slashing . | . . . Piercing . | . . . Sneak Attacks . | . . . Combat Hostiles . | . . . Follow-up Attacks . | . . . Damage Inflicted 980 | . 803 177 Guns 800 | . 623 177 Cannons . | . . . Explosions 164 | . 164 . Melee . | . . . Ramming 16 | . 16 . Kinetic 762 | . 585 177 Thermal 38 | . 38 . Explosive 164 | . 164 . Electromagnetic . | . . . Impact . | . . . Slashing . | . . . Piercing . | . . . Highest Corruption . | . . . Average Corruption . | . . . Corruption Purged . | . . . Overload Shots . | . . . Overflow Damage . | . . . Projectiles . | . . . Explosions . | . . . Melee . | . . . Knockbacks . | . . . Impact . | . . . Kinetic . | . . . Secondary . | . . . Self-Inflicted Damage 110 | . 110 . Shots 1 | . 1 . Rammed 1 | . 1 . Targets Rammed 1 | . 1 . Kicked . | . . . Crushed . | . . . Highest Temperature 55 | . 55 9 Average Temperature 13 | . 14 8 Received Heat Transfer 489 | . 381 108 Siege Activations . | . . . Robots Corrupted . | . . . Combat Hostiles . | . . . Parts Fried . | . . . Impact Corruptions . | . . . Robots Melted . | . . . Combat Hostiles . | . . . Parts Melted . | . . . Heat Transferred 111 | . 111 . Parts Sabotaged . | . . . Parts Stolen . | . . . Parts Stripped . | . . . Power Chain Reactions . | . . . Missiles Intercepted . | . . . Alert | -11 -10 -10 ------- Run | Scr Mat Min Peak Influence 267 | . 267 89 Average Influence 84 | . 103 41 Maximum Alert Level 1 | . 1 . Low Security (%) 98 | 100 97 100 Level 1 1 | . 2 . Level 2 . | . . . Level 3 . | . . . Level 4 . | . . . Level 5 . | . . . High Security . | . . . Max Security . | . . . Squads Dispatched 4 | . 3 1 Investigation 2 | . 1 1 Extermination . | . . . Reinforcement 2 | . 2 . Assault . | . . . Garrison . | . . . Intercept . | . . . Construction Impeded . | . . . Haulers Reinforced . | . . . Stealth | -11 -10 -10 --------- Run | Scr Mat Min Distress Signals 1 | . . 1 Communications Jammed . | . . . Distress Signals . | . . . Times Spotted 28 | . 22 6 Peak Tracking Total 4 | . 4 3 Tactical Retreats 2 | . . 2 Traps | -11 -10 -10 ------- Run | Scr Mat Min Traps Triggered . | . . . Indirectly . | . . . Trap Hack Attempts . | . . . Triggered . | . . . Disarmed . | . . . Reprogrammed . | . . . Reused . | . . . Traps Extracted . | . . . Installed . | . . . Triggered . | . . . Machines | -11 -10 -10 ---------- Run | Scr Mat Min Machines Disabled 2 | . 2 . Max in Single Turn 2 | . 2 . Machines Sabotaged . | . . . Garrisons Compromised . | . . . Overloaded Fab Kills . | . . . Fab Network Shutdowns . | . . . Hacking | -11 -10 -10 --------- Run | Scr Mat Min Machines Accessed 4 | . 3 1 Terminals 3 | . 3 . Fabricators . | . . . Repair Stations . | . . . Recycling Units . | . . . Scanalyzers . | . . . Garrison Access . | . . . Total Hacks 11 | . 10 1 Successful 6 | . 5 1 Failed 5 | . 5 . Catastrophic 3 | . 3 . Database Lockouts . | . . . Manual 7 | . 7 . Terminals 10 | . 10 . Fabricators . | . . . Repair Stations . | . . . Recycling Units . | . . . Scanalyzers . | . . . Garrison Access . | . . . Terminal Hacks 2 | . 1 1 Open Door 1 | . . 1 Terminal Index 1 | . 1 . Fabricator Hacks . | . . . Repair Station Hacks . | . . . Recycling Unit Hacks . | . . . Scanalyzer . | . . . Garrison Access Hacks . | . . . Unauthorized Hacks 4 | . 4 . Terminals 4 | . 4 . Track 1 | . 1 . Botnet 2 | . 2 . Operators 1 | . 1 . Fabricators . | . . . Repair Stations . | . . . Recycling Units . | . . . Scanalyzers . | . . . Garrison Access . | . . . Data Cores Recovered . | . . . Used . | . . . Hacking Detections 3 | . 3 . Full Trace Events 2 | . 2 . Feedback Events . | . . . Feedback Blocked . | . . . Robot Schematics Acquired . | . . . Robots Built . | . . . Matter . | . . . Time . | . . . Total Robot Build Rating . | . . . Part Schematics Acquired . | . . . Parts Built . | . . . Matter . | . . . Time . | . . . Total Part Build Rating . | . . . Parts Repaired . | . . . Time . | . . . Parts Recycled . | . . . Recycled Matter . | . . . Retrieved Matter . | . . . Retrieved Components . | . . . Parts Scanalyzed . | . . . Part Schematics Acquired . | . . . Parts Damaged . | . . . Bothacking | -11 -10 -10 ------------ Run | Scr Mat Min Used RIF Installer . | . . . Robots Hacked . | . . . Non-combat . | . . . Combat . | . . . Robot Hacks Applied . | . . . Relay Couplers Released . | . . . Robots Rewired . | . . . Allies Hacked . | . . . Hacks Repelled . | . . . Allies | -11 -10 -10 -------- Run | Scr Mat Min Total Allies . | . . . Largest Group . | . . . Highest-Rated Group . | . . . Highest-Rated Ally . | . . . Total Orders . | . . . Ally Attacks . | . . . Total Damage . | . . . Kills . | . . . Allies Corrupted . | . . . Allies Melted . | . . . Intel | -11 -10 -10 ------- Run | Scr Mat Min Robot Analysis Total . | . . . Derelict Logs Recovered 1 | . . 1 Drone Launches . | . . . Drone Recoveries . | . . . Exploration | -11 -10 -10 ------------- Run | Scr Mat Min Turns Passed 1355 | 3 933 419 Spaces Moved 642 | 3 438 201 Core . | . . . Treads 623 | . 422 201 Legs 19 | 3 16 . Wheels . | . . . Hover . | . . . Flight . | . . . Fastest Speed 120 | 120 120 180 Average Speed 177 | 120 176 180 Slowest Speed 180 | 120 180 180 Overloaded Moves . | . . . Propulsion Burnouts . | . . . Robots Hopped . | . . . Cave-ins Triggered . | . . . Exploration Rate (%) 41 | 2 76 45 Regions Visited 2 Branch Regions 1 Pre-discovered Areas 1 | . . 1 Known Exits Taken . | . . . Unknown Exits Taken 2 | 1 1 . Scrap Searched . | . . . Spaces Dug . | . . . Terrain Destroyed 14 | . 14 . Melee . | . . . Projectile . | . . . AOE 14 | . 14 . Actions | -11 -10 -10 --------- Run | Scr Mat Min Total 744 | 2 508 234 Wait 3 | . 2 1 Move 640 | 2 437 201 Hop . | . . . Pick Up 8 | . 5 3 Fast Attach 2 | . 1 1 Attach 3 | . 3 . Detach . | . . . Swap 3 | . 3 . Drop 2 | . 2 . Fire 82 | . 54 28 Melee . | . . . Ram . | . . . Kick . | . . . Crush 1 | . 1 . Escape Stasis . | . . . Rewire . | . . . Trap . | . . . Miscellaneous . | . . . Route ------- -11/Scrapyard -10/Materials (discovered 4 exits: [*Mat x3] / *Min) -10/Mines History --------- Turn | Location | Event 1 | -11/Scrapyard | Discovered new exit (range 1) 4 | -11/Scrapyard | Entered Materials 158 | -10/Materials | Core integrity fell below 50% 263 | -10/Materials | Discovered new exit (range 13) 310 | -10/Materials | Build established: Mutant 461 | -10/Materials | Discovered new exit (range 13) 790 | -10/Materials | Discovered new exit (range 13) 854 | -10/Materials | Core integrity fell below 20% 871 | -10/Materials | Lost 4 parts (1p1n2w) 915 | -10/Materials | Discovered new exit (range 13) 937 | -10/Materials | Entered Mines 960 | -10/Mines | Met a Derelict shopkeep closing up shop 1048 | -10/Mines | Learned location of Zion (-7) 1356 | -10/Mines | Destroyed by G-34 Mercenary with Small Laser Last Messages --------------- 00964_ 6E-335(g): "Take whatever you can and run for it!" 00970_ Acquired Cesium-ion Thruster. 00976_ Acquired Lgt. Nuclear Core. 00983_ Acquired Imp. Light Armor Plating. 01015_ K-01 Serf collects debris. 01043_ Acquired 1 matter. 01048_ Acquired derelict log, extracted data. World map updated: -7/Zion. 01082_ K-01 Serf collects debris. 01140_ S-10 Pest destroyed. 01145_ Acquired 9 matter. 01149_ Acquired Lgt. Assault Rifle. 01161_ K-01 Serf collects debris. 01297_ Lgt. Assault Rifle destroyed. 01299_ K-01 Serf collects debris. 01313_ G-47 Trooper suffers critical hit. 01313_ Destroyed Aluminum Leg. 01315_ G-47 Trooper destroyed. 01316_ Acquired 17 matter. 01340_ T-07 Excavator sends out distress signal. Map ----- +----------------------------------------------------+ | ##?????????# ##???????# #??#%######## | | ##????????# #?####### ####=% ##???## | | ####?????# #?# ## = ##???# | | ##?????# #?# ##??# | | # #??????# #??# ####### #??# | | ## #?????## ##### #?????## #??? | | ?## ####### #??????## ########??? | | ??## #???????####?????????? | | ???# ##% #########????????????????????# | | ???# ## ####### ##??????????????????????????### | | ???# #?????## ##??????????????????????????## | | ???#### #??????####??????????????????????????## | | ??????# #???????????????????????????????????## | | ??????# #????????????????????????############ | | ??????# #????????????????????????# # | | ??????# #????????????????????????# ##### | | ??????# #????????????????????????# #### #####???? | | ??????# #????????????????????????# #??# #???????? | | ?????? #??????????#?"???????????# #??# #???????? | | ??????# #??????????# ??????????# #??# #???????? | | ??????? ???????????# ""??????????# ##?# ########? | | ??????? ???????????? """????###### ### #? | | ??????? ?????????????"""????# !%* ######## #? | | ??????? ?????????????? ???# #### ###???# #? | | ??????? ?????????#######g#### #??## ##??# #? | | ??????? ????# @ #???# #### #? | | ??????? ?????????####### ######???## #? | | ???????????????????????# ??????????### #####? | | ??????????????????????? ?????????????## #????? | | ??????????????????????# ??????????????## ##????? | | ??????????????????????#????????????????#####?????? | | ?????????????????????????????????????????????????? | | ?????????????????????????????????????????????????? | | ?????????????????????????????????????????????????? | | ?????????????????????????????????????????????????? | | ?????????????????????????????????????????????????? | | | | | | | | | | | | | | | | | | | | | | | | | | | | | +----------------------------------------------------+ Best States ------------- Heat Dissipation 25 Energy Generation 10 Energy Capacity 250 Matter Stores 300 Matter Capacity 300 Sight Range 16 Terrain Scan Density 10 Evasion (%) 40 Recoil Reduction 2 Item Schematics ----------------- None Robot Schematics ------------------ None Fabricated ------------ Nothing Alien Tech Used ----------------- None Achievements -------------- None Challenges ------------ None Game ------ Seed TractorReactionAutohacker Manual? 0 Play Time 00:07:37 Cumulative 85.1 hours Start 2020.06.09 @ 14:25:30 End 2020.06.09 @ 14:31:28 Sessions 1 Manual Loads 0 Difficulty Rogue Special Mode None Game No. 105 Rogue 105 Adventurer 0 Explorer 0 Win Type - Total 2 Types 2/0/0/0/0/0/0 Lore% 65 Gallery% 58 Achievement% 50 Wizard Run 0 Options --------- ASCII 0 Keyboard 0 Movement Mouse Keybinds 0 Fullscreen 2 Font 18/SmallcapsGlow Map View 76x50 Tactical HUD 1 Map Filters NONE Filters NONE Steam 1 RUN: 1a53f120-d9c0-4ad6-a446-6dddc6b65e34